fUSD/lending_fUSD_20250628
["ID","MTS","AMOUNT","RATE_DAILY","PERIOD"]
[368248485,1751071882246,-1128.63,0.00045753,60]
[368248486,1751071882255,-1000.0,0.00045753,60]
[368248487,1751071882264,-490.0,0.00045753,60]
[368248488,1751071882274,-150.0,0.00045759,2]
[368248489,1751071882283,-150.0,0.00045778,2]
[368248490,1751071882293,-1000.0,0.00045795,14]
[368248491,1751071882302,-591.02,0.00045821,2]
[368248492,1751071882312,-354.612,0.00045821,2]
[368248493,1751071882321,-236.408,0.00045821,2]
[368248494,1751071882330,-308.21799295,0.00045821,2]
[368248495,1751071882340,-308.21799295,0.00045821,2]
[368248496,1751071882349,-276.19908548,0.00045848,14]
[368248497,1751071882358,-9785.18177869,0.00045866,15]
[368248498,1751071882368,-327.01,0.00045899,60]
[368248499,1751071882377,-9629.80218808,0.000459,120]
[368248500,1751071882387,-150.0,0.00045907,2]
[368248501,1751071882397,-150.0,0.00045921,2]
[368248502,1751071882406,-1000.0,0.00045923,14]
[368248503,1751071882416,-19351.10896752,0.00045927,2]
[368248504,1751071882425,-198.09962049,0.00045927,2]
[368248505,1751071882435,-1838.7109461,0.00045927,2]
[368248506,1751071882444,-158.44291981,0.00045927,90]
[368248507,1751071882454,-150.0,0.00045937,2]
[368248508,1751071882464,-793.85576445,0.00045973,22]
[368248509,1751071882473,-150.0,0.00045974,2]
[368248510,1751071882483,-1000.0,0.00046,120]
[368248511,1751071882493,-2348.05,0.00046,120]
[368248512,1751071882503,-76617.07128646,0.00046,7]
[368248513,1751071882513,-1000.0,0.00046,120]
[368248514,1751071882523,-150.0,0.00046,2]
[368248515,1751071882534,-150.0,0.00046001,2]
[368248516,1751071882543,-360.62629054,0.00046027,60]
[368248517,1751071882552,-490.0,0.00046027,60]
[368248518,1751071882562,-490.0,0.00046027,60]
[368248519,1751071882571,-490.0,0.00046027,60]
[368248520,1751071882581,-490.0,0.00046027,60]
[368248521,1751071882590,-151.0,0.00046027,2]
[368248522,1751071882600,-490.0,0.00046027,60]
[368248523,1751071882609,-490.0,0.00046027,60]
[368248524,1751071882619,-490.0,0.00046027,60]
[368248525,1751071882628,-490.0,0.00046027,60]
[368248526,1751071882638,-252.15477456,0.00046027,60]
[368248527,1751071882647,-490.0,0.00046027,60]
[368248528,1751071882657,-632.98,0.00046027,60]
[368248529,1751071882666,-339.39526975,0.00046027,60]
[368248530,1751071882675,-594.52,0.00046027,60]
[368248531,1751071882685,-490.0,0.00046027,60]
[368248532,1751071882694,-490.0,0.00046027,60]
[368248533,1751071882704,-490.0,0.00046027,60]
[368248534,1751071882713,-483.59,0.00046027,60]
[368248535,1751071882722,-553.58,0.00046027,60]
[368248536,1751071882732,-508.58,0.00046027,60]
[368248537,1751071882741,-219.61409059,0.00046027,60]
[368248538,1751071882750,-490.0,0.00046027,60]
[368248539,1751071882760,-490.0,0.00046027,60]
[368248540,1751071882769,-490.0,0.00046027,60]
[368248541,1751071882779,-490.0,0.00046027,60]
[368248542,1751071882788,-490.0,0.00046027,60]
[368248543,1751071882797,-490.0,0.00046027,60]
[368248544,1751071882807,-179.7,0.00046027,60]
[368248545,1751071882816,-490.0,0.00046027,60]
[368248546,1751071882825,-656.12,0.00046027,2]
[368248547,1751071882834,-490.0,0.00046027,60]
[368248548,1751071882843,-490.0,0.00046027,60]
[368248549,1751071882852,-510.76,0.00046027,60]
[368248550,1751071882862,-490.0,0.00046027,60]
[368248551,1751071882871,-687.24,0.00046027,60]
[368248552,1751071882880,-490.0,0.00046027,60]
[368248553,1751071882890,-490.0,0.00046027,60]
[368248554,1751071882899,-490.0,0.00046027,60]
[368248555,1751071882908,-490.0,0.00046027,60]
[368248556,1751071882917,-490.0,0.00046027,60]
[368248557,1751071882927,-490.0,0.00046027,60]
[368248558,1751071882937,-490.0,0.00046027,60]
[368248559,1751071882946,-490.0,0.00046027,60]
[368248560,1751071882955,-1241.16,0.00046027,60]
[368248561,1751071882966,-490.0,0.00046027,60]
[368248562,1751071882975,-779.72,0.00046027,60]
[368248563,1751071882983,-564.52,0.00046027,60]
[368248564,1751071882994,-500.0,0.00046027,120]
[368248565,1751071883003,-576.95636839,0.00046027,60]
[368248566,1751071883012,-490.0,0.00046027,60]
[368248567,1751071883021,-597.71,0.00046027,60]
[368248568,1751071883030,-490.0,0.00046027,60]
[368248569,1751071883039,-490.0,0.00046027,60]
[368248570,1751071883048,-490.0,0.00046027,60]
[368248571,1751071883057,-156.106223,0.00046027,60]
[368248572,1751071883067,-696.1,0.00046027,60]
[368248573,1751071883076,-490.0,0.00046027,60]
[368248574,1751071883086,-559.13,0.00046027,60]
[368248575,1751071883095,-490.0,0.00046027,60]
[368248576,1751071883104,-518.09935182,0.00046027,60]
[368248577,1751071883113,-154.28143,0.00046027,60]
[368248578,1751071883122,-490.0,0.00046027,60]
[368248579,1751071883131,-490.0,0.00046027,60]
[368248580,1751071883140,-490.0,0.00046027,60]
[368248581,1751071883150,-490.0,0.00046027,60]
[368248582,1751071883161,-490.0,0.00046027,60]
[368248583,1751071883170,-179.564808,0.00046027,60]
[368248584,1751071883179,-721.73,0.00046027,60]
[368248585,1751071883191,-490.0,0.00046027,60]
[368248586,1751071883202,-490.0,0.00046027,60]
[368248587,1751071883216,-490.0,0.00046027,60]
[368248588,1751071883227,-490.0,0.00046027,60]
[368248589,1751071883236,-490.0,0.00046027,60]
[368248590,1751071883247,-490.0,0.00046027,60]
[368248591,1751071883256,-490.0,0.00046027,60]
[368248592,1751071883265,-958.32,0.00046027,60]
[368248593,1751071883275,-490.0,0.00046027,60]
[368248594,1751071883285,-490.0,0.00046027,60]
[368248595,1751071883295,-490.0,0.00046027,60]
[368248596,1751071883304,-507.37,0.00046027,60]
[368248597,1751071883313,-490.0,0.00046027,60]
[368248598,1751071883323,-490.0,0.00046027,60]
[368248599,1751071883332,-743.38,0.00046027,60]
[368248600,1751071883341,-526.08,0.00046027,60]
[368248601,1751071883350,-490.0,0.00046027,60]
[368248602,1751071883360,-490.0,0.00046027,60]
[368248603,1751071883369,-1492.54,0.00046027,60]
[368248604,1751071883379,-519.17,0.00046027,60]
[368248605,1751071883388,-490.0,0.00046027,60]
[368248606,1751071883397,-490.0,0.00046027,60]
[368248607,1751071883407,-192.98,0.00046027,60]
[368248608,1751071883417,-490.0,0.00046027,60]
[368248609,1751071883427,-490.0,0.00046027,60]
[368248610,1751071883438,-490.0,0.00046027,60]
[368248611,1751071883448,-490.0,0.00046027,60]
[368248612,1751071883457,-490.0,0.00046027,60]
[368248613,1751071883466,-490.0,0.00046027,60]
[368248614,1751071883476,-490.0,0.00046027,60]
[368248615,1751071883486,-490.0,0.00046027,60]
[368248616,1751071883496,-490.0,0.00046027,60]
[368248617,1751071883622,-570.52,0.00046027,60]
[368248618,1751071883632,-490.0,0.00046027,60]
[368248619,1751071883642,-583.94,0.00046027,60]
[368248620,1751071883652,-666.63,0.00046027,60]
[368248621,1751071883661,-920.83,0.00046027,60]
[368248622,1751071883670,-490.0,0.00046027,60]
[368248623,1751071883680,-1154.84,0.00046027,60]
[368248624,1751071883690,-490.0,0.00046027,60]
[368248625,1751071883700,-733.75,0.00046027,60]
[368248626,1751071883710,-519.13,0.00046027,60]
[368248627,1751071883719,-490.0,0.00046027,60]
[368248628,1751071883729,-1054.47,0.00046027,60]
[368248629,1751071883738,-490.0,0.00046027,60]
[368248630,1751071883747,-490.0,0.00046027,60]
[368248631,1751071883756,-490.0,0.00046027,60]
[368248632,1751071883766,-741.5,0.00046027,60]
[368248633,1751071883775,-490.0,0.00046027,60]
[368248634,1751071883784,-526.74,0.00046027,60]
[368248635,1751071883794,-513.84,0.00046027,60]
[368248636,1751071883803,-1040.12,0.00046027,60]
[368248637,1751071883812,-555.78,0.00046027,60]
[368248638,1751071883822,-490.0,0.00046027,60]
[368248639,1751071883831,-3283.31,0.00046027,60]
[368248640,1751071883840,-490.0,0.00046027,60]
[368248641,1751071883849,-490.0,0.00046027,60]
[368248642,1751071883858,-858.82,0.00046027,60]
[368248643,1751071883868,-490.0,0.00046027,60]
[368248644,1751071883877,-744.08,0.00046027,60]
[368248645,1751071883886,-490.0,0.00046027,60]
[368248646,1751071883895,-490.0,0.00046027,60]
[368248647,1751071883905,-1463.6,0.00046027,60]
[368248648,1751071883914,-504.68,0.00046027,60]
[368248649,1751071883924,-848.47,0.00046027,60]
[368248650,1751071883933,-490.0,0.00046027,60]
[368248651,1751071883943,-490.0,0.00046027,60]
[368248652,1751071883952,-632.81,0.00046027,60]
[368248653,1751071883961,-1381.52,0.00046027,60]
[368248654,1751071883971,-270.53,0.00046027,60]
[368248655,1751071883980,-821.19,0.00046027,60]
[368248656,1751071883989,-490.0,0.00046027,60]
[368248657,1751071883998,-504.18,0.00046027,60]
[368248658,1751071884007,-980.59,0.00046027,60]
[368248659,1751071884017,-490.0,0.00046027,60]
[368248660,1751071884026,-701.16,0.00046027,60]
[368248661,1751071884036,-490.0,0.00046027,60]
[368248662,1751071884045,-1101.82,0.00046027,60]
[368248663,1751071884054,-490.0,0.00046027,60]
[368248664,1751071884063,-490.0,0.00046027,60]
[368248665,1751071884072,-576.77,0.00046027,60]
[368248666,1751071884082,-492.8,0.00046027,60]
[368248667,1751071884092,-1389.59,0.00046027,60]
[368248668,1751071884103,-761.04,0.00046027,60]
[368248669,1751071884114,-2742.88,0.00046027,60]
[368248670,1751071884125,-3633.8,0.00046027,60]
[368248671,1751071884135,-631.21,0.00046027,60]
[368248672,1751071884145,-560.29,0.00046027,60]
[368248673,1751071884155,-1621.27,0.00046027,60]
[368248674,1751071884165,-490.0,0.00046027,60]
[368248675,1751071884174,-1119.72,0.00046027,60]
[368248676,1751071884184,-528.93,0.00046027,60]
[368248677,1751071884193,-1270.62,0.00046027,60]
[368248678,1751071884203,-1055.73,0.00046027,60]
[368248679,1751071884215,-490.0,0.00046027,60]
[368248680,1751071884224,-490.0,0.00046027,60]
[368248681,1751071884233,-490.0,0.00046027,60]
[368248682,1751071884242,-3883.34,0.00046027,60]
[368248683,1751071884251,-881.48,0.00046027,60]
[368248684,1751071884260,-797.91,0.00046027,60]
[368248685,1751071884270,-490.0,0.00046027,60]
[368248686,1751071884279,-564.31,0.00046027,60]
[368248687,1751071884289,-960.84,0.00046027,60]
[368248688,1751071884299,-544.38,0.00046027,60]
[368248689,1751071884309,-819.67,0.00046027,60]
[368248690,1751071884318,-548.79,0.00046027,60]
[368248691,1751071884327,-490.0,0.00046027,60]
[368248692,1751071884336,-490.0,0.00046027,60]
[368248693,1751071884348,-490.0,0.00046027,60]
[368248694,1751071884358,-877.78,0.00046027,60]
[368248695,1751071884367,-519.68,0.00046027,60]
[368248696,1751071884377,-499.03,0.00046027,60]
[368248697,1751071884386,-1100.02,0.00046027,60]
[368248698,1751071884395,-1040.49,0.00046027,60]
[368248699,1751071884404,-942.77,0.00046027,60]
[368248700,1751071884414,-953.56,0.00046027,60]
[368248701,1751071884423,-1086.04,0.00046027,60]
[368248702,1751071884433,-490.0,0.00046027,60]
[368248703,1751071884442,-6952.88,0.00046027,60]
[368248704,1751071884452,-531.35,0.00046027,60]
[368248705,1751071884461,-1825.19,0.00046027,60]
[368248706,1751071884471,-551.06,0.00046027,60]
[368248707,1751071884480,-562.04464276,0.00046027,60]
[368248708,1751071884490,-1040.65,0.00046027,60]
[368248709,1751071884500,-551.92,0.00046027,60]
[368248710,1751071884509,-1592.1,0.00046027,60]
[368248711,1751071884519,-990.34,0.00046027,60]
[368248712,1751071884528,-490.0,0.00046027,60]
[368248713,1751071884538,-511.18,0.00046027,60]
[368248714,1751071884547,-660.58,0.00046027,60]
[368248715,1751071884557,-899.19,0.00046027,60]
[368248716,1751071884566,-490.0,0.00046027,60]
[368248717,1751071884576,-554.3,0.00046027,60]
[368248718,1751071884585,-548.05,0.00046027,60]
[368248719,1751071884595,-490.0,0.00046027,60]
[368248720,1751071884605,-490.0,0.00046027,60]
[368248721,1751071884614,-490.0,0.00046027,60]
[368248722,1751071884623,-490.0,0.00046027,60]
[368248723,1751071884633,-116331.36,0.00046027,60]
[368248724,1751071884642,-490.0,0.00046027,60]
[368248725,1751071884653,-896.07,0.00046027,60]
[368248726,1751071884662,-774.82,0.00046027,60]
[368248727,1751071884672,-787.73,0.00046027,60]
[368248728,1751071884682,-1205.17,0.00046027,60]
[368248729,1751071884691,-1755.56,0.00046027,60]
[368248730,1751071884701,-490.0,0.00046027,60]
[368248731,1751071884710,-490.0,0.00046027,60]
[368248732,1751071884720,-1776.88,0.00046027,60]
[368248733,1751071884731,-497.76,0.00046027,60]
[368248734,1751071884740,-490.0,0.00046027,60]
[368248735,1751071884749,-490.0,0.00046027,60]
[368248736,1751071884758,-850.04,0.00046027,60]
[368248737,1751071884767,-490.0,0.00046027,60]
[368248738,1751071884777,-1470.22,0.00046027,60]
[368248739,1751071884786,-547.95,0.00046027,60]
[368248740,1751071884795,-490.0,0.00046027,60]
[368248741,1751071884807,-906.79,0.00046027,60]
[368248742,1751071884816,-656.99,0.00046027,60]
[368248743,1751071884826,-159.095478,0.00046027,60]
[368248744,1751071884836,-490.0,0.00046027,60]
[368248745,1751071884845,-561.17,0.00046027,60]
[368248746,1751071884855,-532.35,0.00046027,60]
[368248747,1751071884864,-2168.75,0.00046027,60]
[368248748,1751071884874,-1280.03,0.00046027,60]
[368248749,1751071884884,-490.0,0.00046027,60]
[368248750,1751071884893,-490.0,0.00046027,60]
[368248751,1751071884903,-558.63,0.00046027,60]
[368248752,1751071884913,-923.38,0.00046027,60]
[368248753,1751071884923,-490.0,0.00046027,60]
[368248754,1751071884934,-1132.38,0.00046027,60]
[368248755,1751071884944,-490.0,0.00046027,60]
[368248756,1751071884953,-681.77,0.00046027,60]
[368248757,1751071884964,-490.0,0.00046027,60]
[368248758,1751071884974,-490.0,0.00046027,60]
[368248759,1751071884983,-1998.82,0.00046027,60]
[368248760,1751071884993,-668.11,0.00046027,60]
[368248761,1751071885002,-716.54,0.00046027,60]
[368248762,1751071885012,-633.4,0.00046027,60]
[368248763,1751071885022,-490.0,0.00046027,60]
[368248764,1751071885033,-878.36,0.00046027,60]
[368248765,1751071885043,-1819.64,0.00046027,60]
[368248766,1751071885053,-4700.89,0.00046027,60]
[368248767,1751071885062,-490.0,0.00046027,60]
[368248768,1751071885071,-865.33,0.00046027,60]
[368248769,1751071885081,-742.7,0.00046027,60]
[368248770,1751071885090,-490.0,0.00046027,60]
[368248771,1751071885100,-490.0,0.00046027,60]
[368248772,1751071885110,-645.35,0.00046027,60]
[368248773,1751071885119,-634.14,0.00046027,60]
[368248774,1751071885128,-1740.41,0.00046027,60]
[368248775,1751071885138,-490.0,0.00046027,60]
[368248776,1751071885147,-1968.42,0.00046027,14]
[368248777,1751071885156,-513.85,0.00046027,60]
[368248778,1751071885166,-490.0,0.00046027,60]
[368248779,1751071885176,-2452.13,0.00046027,60]
[368248780,1751071885185,-654.89,0.00046027,60]
[368248781,1751071885194,-763.1,0.00046027,60]
[368248782,1751071885204,-573.87,0.00046027,60]
[368248783,1751071885216,-948.87,0.00046027,60]
[368248784,1751071885226,-490.0,0.00046027,60]
[368248785,1751071885235,-538.32,0.00046027,60]
[368248786,1751071885246,-492.97,0.00046027,60]
[368248787,1751071885256,-490.0,0.00046027,60]
[368248788,1751071885266,-635.30910404,0.00046027,60]
[368248789,1751071885275,-722.82,0.00046027,60]
[368248790,1751071885286,-490.0,0.00046027,60]
[368248791,1751071885295,-742.09,0.00046027,60]
[368248792,1751071885305,-1684.21,0.00046027,60]
[368248793,1751071885314,-490.0,0.00046027,60]
[368248794,1751071885324,-1592.37,0.00046027,60]
[368248795,1751071885333,-520.76,0.00046027,60]
[368248796,1751071885342,-490.0,0.00046027,60]
[368248797,1751071885351,-490.0,0.00046027,60]
[368248798,1751071885362,-1085.58,0.00046027,60]
[368248799,1751071885371,-592.17,0.00046027,60]
[368248800,1751071885380,-717.14,0.00046027,60]
[368248801,1751071885390,-588.68,0.00046027,60]
[368248802,1751071885399,-2828.04,0.00046027,60]
[368248803,1751071885410,-490.0,0.00046027,60]
[368248804,1751071885419,-2351.28,0.00046027,60]
[368248805,1751071885432,-490.0,0.00046027,60]
[368248806,1751071885441,-1128.63,0.00046027,60]
[368248807,1751071885450,-1000.0,0.00046027,60]
[368248808,1751071885460,-490.0,0.00046027,60]
[368248809,1751071885469,-150.0,0.00046032,2]
[368248810,1751071885479,-150.0,0.0004604,2]
[368248811,1751071885599,-2110.0,0.00046075,30]
[368248812,1751071885609,-1000.0,0.00046087,14]
[368248813,1751071885620,-150.0,0.00046108,2]
[368248814,1751071885632,-150.0,0.00046145,2]
[368248815,1751071885642,-150.0,0.00046168,14]
[368248816,1751071885652,-9785.18177869,0.0004617,15]
[368248817,1751071885662,-150.0,0.00046179,2]
[368248818,1751071885672,-259.0,0.00046188,7]
[368248819,1751071885682,-150.0,0.0004619,2]
[368248820,1751071885691,-3997.59839905,0.000462,120]
[368248821,1751071885700,-155.59,0.000462,7]
[368248822,1751071885710,-158.99677566,0.00046201,120]
[368248823,1751071885719,-898.94735045,0.00046215,14]
[368248824,1751071885729,-150.0,0.0004623,2]
[368248825,1751071885738,-150.0,0.00046235,2]
[368248826,1751071885751,-275.78651878,0.00046239,28]
[368248827,1751071885760,-150.0,0.00046289,14]
[368248828,1751071885769,-150.0,0.00046298,2]
[368248829,1751071885778,-1067.6178,0.000463,120]
[368248830,1751071885787,-490.0,0.00046301,60]
[368248831,1751071885796,-490.0,0.00046301,60]
[368248832,1751071885805,-490.0,0.00046301,60]
[368248833,1751071885814,-490.0,0.00046301,60]
[368248834,1751071885823,-227.642319,0.00046301,2]
[368248835,1751071885832,-216.73,0.00046301,60]
[368248836,1751071885841,-490.0,0.00046301,60]
[368248837,1751071885850,-262.80435331,0.00046301,60]
[368248838,1751071885860,-490.0,0.00046301,60]
[368248839,1751071885869,-490.0,0.00046301,60]
[368248840,1751071885878,-632.98,0.00046301,60]
[368248841,1751071885888,-594.52,0.00046301,60]
[368248842,1751071885897,-490.0,0.00046301,60]
[368248843,1751071885906,-490.0,0.00046301,60]
[368248844,1751071885916,-490.0,0.00046301,60]
[368248845,1751071885924,-553.58,0.00046301,60]
[368248846,1751071885934,-508.58,0.00046301,60]
[368248847,1751071885943,-490.0,0.00046301,60]
[368248848,1751071885952,-490.0,0.00046301,60]
[368248849,1751071885962,-490.0,0.00046301,60]
[368248850,1751071885971,-490.0,0.00046301,60]
[368248851,1751071885980,-311.2,0.00046301,60]
[368248852,1751071885990,-490.0,0.00046301,60]
[368248853,1751071885999,-490.0,0.00046301,60]
[368248854,1751071886008,-656.12,0.00046301,2]
[368248855,1751071886017,-490.0,0.00046301,60]
[368248856,1751071886026,-490.0,0.00046301,60]
[368248857,1751071886035,-510.76,0.00046301,60]
[368248858,1751071886044,-490.0,0.00046301,60]
[368248859,1751071886053,-687.24,0.00046301,60]
[368248860,1751071886062,-490.0,0.00046301,60]
[368248861,1751071886071,-421.32,0.00046301,60]
[368248862,1751071886080,-490.0,0.00046301,60]
[368248863,1751071886090,-490.0,0.00046301,60]
[368248864,1751071886099,-490.0,0.00046301,60]
[368248865,1751071886108,-490.0,0.00046301,60]
[368248866,1751071886119,-490.0,0.00046301,60]
[368248867,1751071886128,-490.0,0.00046301,60]
[368248868,1751071886138,-1241.16,0.00046301,60]
[368248869,1751071886147,-490.0,0.00046301,60]
[368248870,1751071886158,-779.72,0.00046301,60]
[368248871,1751071886167,-594.93841158,0.00046301,120]
[368248872,1751071886178,-490.0,0.00046301,60]
[368248873,1751071886187,-597.71,0.00046301,60]
[368248874,1751071886196,-490.0,0.00046301,60]
[368248875,1751071886207,-490.0,0.00046301,60]
[368248876,1751071886216,-403.23221895,0.00046301,60]
[368248877,1751071886226,-156.106223,0.00046301,60]
[368248878,1751071886236,-696.1,0.00046301,60]
[368248879,1751071886245,-490.0,0.00046301,60]
[368248880,1751071886254,-490.0,0.00046301,60]
[368248881,1751071886263,-154.28143,0.00046301,60]
[368248882,1751071886272,-490.0,0.00046301,60]
[368248883,1751071886281,-490.0,0.00046301,60]
[368248884,1751071886291,-490.0,0.00046301,60]
[368248885,1751071886300,-490.0,0.00046301,60]
[368248886,1751071886310,-490.0,0.00046301,60]
[368248887,1751071886319,-179.564808,0.00046301,60]
[368248888,1751071886328,-721.73,0.00046301,60]
[368248889,1751071886337,-490.0,0.00046301,60]
[368248890,1751071886347,-490.0,0.00046301,60]
[368248891,1751071886356,-490.0,0.00046301,60]
[368248892,1751071886366,-490.0,0.00046301,60]
[368248893,1751071886375,-490.0,0.00046301,60]
[368248894,1751071886383,-490.0,0.00046301,60]
[368248895,1751071886393,-490.0,0.00046301,60]
[368248896,1751071886402,-958.32,0.00046301,60]
[368248897,1751071886411,-490.0,0.00046301,60]
[368248898,1751071886421,-490.0,0.00046301,60]
[368248899,1751071886430,-490.0,0.00046301,60]
[368248900,1751071886440,-507.37,0.00046301,60]
[368248901,1751071886449,-490.0,0.00046301,60]
[368248902,1751071886459,-490.0,0.00046301,60]
[368248903,1751071886468,-743.38,0.00046301,60]
[368248904,1751071886478,-526.08,0.00046301,60]
[368248905,1751071886488,-490.0,0.00046301,60]
[368248906,1751071886498,-289.9,0.00046301,60]
[368248907,1751071886507,-1492.54,0.00046301,60]
[368248908,1751071886518,-519.17,0.00046301,60]
[368248909,1751071886527,-490.0,0.00046301,60]
[368248910,1751071886537,-490.0,0.00046301,60]
[368248911,1751071886546,-490.0,0.00046301,60]
[368248912,1751071886555,-490.0,0.00046301,60]
[368248913,1751071886564,-490.0,0.00046301,60]
[368248914,1751071886574,-490.0,0.00046301,60]
[368248915,1751071886583,-246.18,0.00046301,60]
[368248916,1751071886593,-490.0,0.00046301,60]
[368248917,1751071886602,-490.0,0.00046301,60]
[368248918,1751071886612,-490.0,0.00046301,60]
[368248919,1751071886621,-490.0,0.00046301,60]
[368248920,1751071886630,-570.52,0.00046301,60]
[368248921,1751071886640,-490.0,0.00046301,60]
[368248922,1751071886650,-666.63,0.00046301,60]
[368248923,1751071886659,-920.83,0.00046301,60]
[368248924,1751071886669,-490.0,0.00046301,60]
[368248925,1751071886679,-1154.84,0.00046301,60]
[368248926,1751071886689,-490.0,0.00046301,60]
[368248927,1751071886698,-733.75,0.00046301,60]
[368248928,1751071886707,-519.13,0.00046301,60]
[368248929,1751071886716,-314.61,0.00046301,60]
[368248930,1751071886726,-1054.47,0.00046301,60]
[368248931,1751071886735,-490.0,0.00046301,60]
[368248932,1751071886744,-490.0,0.00046301,60]
[368248933,1751071886754,-490.0,0.00046301,60]
[368248934,1751071886763,-741.5,0.00046301,60]
[368248935,1751071886772,-490.0,0.00046301,60]
[368248936,1751071886781,-526.74,0.00046301,60]
[368248937,1751071886791,-513.84,0.00046301,60]
[368248938,1751071886800,-1040.12,0.00046301,60]
[368248939,1751071886809,-555.78,0.00046301,60]
[368248940,1751071886818,-490.0,0.00046301,60]
[368248941,1751071886828,-3283.31,0.00046301,60]
[368248942,1751071886837,-490.0,0.00046301,60]
[368248943,1751071886846,-150.3,0.00046301,60]
[368248944,1751071886855,-858.82,0.00046301,60]
[368248945,1751071886865,-490.0,0.00046301,60]
[368248946,1751071886874,-744.08,0.00046301,60]
[368248947,1751071886883,-490.0,0.00046301,60]
[368248948,1751071886892,-490.0,0.00046301,60]
[368248949,1751071886902,-1463.6,0.00046301,60]
[368248950,1751071886911,-504.68,0.00046301,60]
[368248951,1751071886921,-848.47,0.00046301,60]
[368248952,1751071886930,-490.0,0.00046301,60]
[368248953,1751071886939,-490.0,0.00046301,60]
[368248954,1751071886948,-632.81,0.00046301,60]
[368248955,1751071886957,-1381.52,0.00046301,60]
[368248956,1751071886966,-821.19,0.00046301,60]
[368248957,1751071886975,-490.0,0.00046301,60]
[368248958,1751071886985,-504.18,0.00046301,60]
[368248959,1751071886994,-980.59,0.00046301,60]
[368248960,1751071887003,-490.0,0.00046301,60]
[368248961,1751071887014,-701.16,0.00046301,60]
[368248962,1751071887026,-490.0,0.00046301,60]
[368248963,1751071887036,-1101.82,0.00046301,60]
[368248964,1751071887046,-490.0,0.00046301,60]
[368248965,1751071887056,-490.0,0.00046301,60]
[368248966,1751071887066,-492.8,0.00046301,60]
[368248967,1751071887075,-1389.59,0.00046301,60]
[368248968,1751071887084,-761.04,0.00046301,60]
[368248969,1751071887093,-2742.88,0.00046301,60]
[368248970,1751071887103,-3633.8,0.00046301,60]
[368248971,1751071887112,-631.21,0.00046301,60]
[368248972,1751071887122,-560.29,0.00046301,60]
[368248973,1751071887133,-1621.27,0.00046301,60]
[368248974,1751071887143,-490.0,0.00046301,60]
[368248975,1751071887154,-1119.72,0.00046301,60]
[368248976,1751071887164,-528.93,0.00046301,60]
[368248977,1751071887173,-1055.73,0.00046301,60]
[368248978,1751071887183,-1270.62,0.00046301,60]
[368248979,1751071887192,-490.0,0.00046301,60]
[368248980,1751071887201,-497.47,0.00046301,60]
[368248981,1751071887215,-490.0,0.00046301,60]
[368248982,1751071887225,-3883.34,0.00046301,60]
[368248983,1751071887234,-797.91,0.00046301,60]
[368248984,1751071887244,-881.48,0.00046301,60]